fUSD/lending_fUSD_20260304
["ID","MTS","AMOUNT","RATE_DAILY","PERIOD"]
[407668430,1772649038120,-151.0,0.0003,7]
[407668431,1772649038130,-524.606221,0.0003,7]
[407668432,1772649038140,-524.606221,0.0003,7]
[407668433,1772649038150,-524.606221,0.0003,7]
[407668434,1772649038159,-524.606221,0.0003,7]
[407668435,1772649038169,-2521.936091,0.0003,7]
[407668436,1772649038179,-2521.936091,0.0003,7]
[407668438,1772649038190,-2521.936091,0.0003,7]
[407668440,1772649038199,-2521.936091,0.0003,7]
[407668441,1772649038209,-151.0,0.0003,7]
[407668444,1772649038218,-154.27111,0.0003,7]
[407668446,1772649038228,-154.27111,0.0003,7]
[407668448,1772649038236,-154.27111,0.0003,7]
[407668449,1772649038246,-154.27111,0.0003,7]
[407668452,1772649038256,-151.0,0.0003,7]
[407668454,1772649038265,-151.0,0.0003,7]
[407668455,1772649038275,-618.0,0.0003001,2]
[407668456,1772649038289,-10204.76906751,0.00030083,2]
[407668457,1772649038299,-2802.0,0.00030096,3]
[407668458,1772649038309,-984.108334,0.00030163,2]
[407668459,1772649038321,-618.0,0.00030182,7]
[407668460,1772649038332,-1700.0,0.0003048,14]
[407668461,1772649038343,-618.0,0.00030483,2]
[407668462,1772649038353,-531.0,0.00030559,30]
[407668463,1772649038363,-439.0,0.00030559,30]
[407668464,1772649038374,-618.0,0.0003057,2]
[407668465,1772649038384,-993.49,0.00030621,30]
[407668466,1772649038393,-325.55,0.00030629,120]
[407668467,1772649038404,-623.0,0.00030714,2]
[407668468,1772649038414,-7833.65054693,0.0003075,2]
[407668469,1772649038424,-620.0,0.00030763,2]
[407668470,1772649038434,-1212.0,0.00030834,2]
[407668471,1772649038443,-3744.0,0.00030834,2]
[407668472,1772649038453,-500.0,0.0003084,30]
[407668473,1772649038463,-1924.97,0.00030849,120]
[407668474,1772649038473,-500.0,0.0003085,7]
[407668475,1772649038483,-500.0,0.0003085,7]
[407668476,1772649038496,-500.0,0.0003085,7]
[407668477,1772649038506,-500.0,0.0003085,7]
[407668478,1772649038517,-500.0,0.0003085,7]
[407668479,1772649038527,-500.0,0.0003085,7]
[407668480,1772649038538,-500.0,0.0003085,7]
[407668481,1772649038549,-500.0,0.0003085,7]
[407668482,1772649038559,-500.0,0.0003085,7]
[407668483,1772649038570,-500.0,0.0003085,7]
[407668484,1772649038580,-500.0,0.0003085,7]
[407668485,1772649038590,-500.0,0.0003085,7]
[407668486,1772649038600,-500.0,0.0003085,7]
[407668487,1772649038610,-500.0,0.0003085,7]
[407668488,1772649038619,-500.0,0.0003085,7]
[407668489,1772649038630,-500.0,0.0003085,7]
[407668490,1772649038640,-500.0,0.0003085,7]
[407668491,1772649038650,-310.64,0.0003085,7]
[407668492,1772649038660,-500.0,0.0003085,7]
[407668493,1772649038670,-500.0,0.0003085,7]
[407668494,1772649038679,-500.0,0.0003085,7]
[407668495,1772649038693,-500.0,0.0003085,7]
[407668496,1772649038703,-500.0,0.0003085,7]
[407668497,1772649038712,-500.0,0.0003085,7]
[407668498,1772649038722,-500.0,0.0003085,7]
[407668499,1772649038732,-500.0,0.0003085,7]
[407668500,1772649038743,-500.0,0.0003085,7]
[407668501,1772649038938,-500.0,0.0003085,7]
[407668502,1772649038948,-500.0,0.0003085,7]
[407668503,1772649038958,-500.0,0.0003085,7]
[407668504,1772649038967,-500.0,0.0003085,7]
[407668505,1772649038976,-500.0,0.0003085,7]
[407668506,1772649038985,-500.0,0.0003085,7]
[407668507,1772649038995,-500.0,0.0003085,7]
[407668508,1772649039005,-500.0,0.0003085,7]
[407668509,1772649039015,-500.0,0.0003085,7]
[407668510,1772649039025,-500.0,0.0003085,7]
[407668511,1772649039035,-500.0,0.0003085,7]
[407668512,1772649039044,-500.0,0.0003085,7]
[407668513,1772649039054,-500.0,0.0003085,7]
[407668514,1772649039064,-500.0,0.0003085,7]
[407668515,1772649039074,-500.0,0.0003085,7]
[407668516,1772649039084,-500.0,0.0003085,7]
[407668517,1772649039094,-500.0,0.0003085,7]
[407668518,1772649039104,-500.0,0.0003085,7]
[407668519,1772649039113,-500.0,0.0003085,7]
[407668520,1772649039123,-500.0,0.0003085,7]
[407668521,1772649039132,-500.0,0.0003085,7]
[407668522,1772649039142,-500.0,0.0003085,7]
[407668523,1772649039153,-500.0,0.0003085,7]
[407668524,1772649039163,-500.0,0.0003085,7]
[407668525,1772649039172,-500.0,0.0003085,7]
[407668526,1772649039182,-500.0,0.0003085,7]
[407668527,1772649039191,-500.0,0.0003085,7]
[407668528,1772649039200,-500.0,0.0003085,7]
[407668529,1772649039218,-151.0,0.0003085,7]
[407668530,1772649039230,-524.606221,0.0003085,7]
[407668531,1772649039240,-524.606221,0.0003085,7]
[407668532,1772649039250,-524.606221,0.0003085,7]
[407668533,1772649039260,-524.606221,0.0003085,7]
[407668534,1772649039271,-2521.936091,0.0003085,7]
[407668535,1772649039282,-2521.936091,0.0003085,7]
[407668536,1772649039293,-2521.936091,0.0003085,7]
[407668537,1772649039303,-2521.936091,0.0003085,7]
[407668538,1772649039313,-177.834787,0.0003085,7]
[407668539,1772649039323,-154.27111,0.0003085,7]
[407668540,1772649039334,-154.27111,0.0003085,7]
[407668541,1772649039347,-154.27111,0.0003085,7]
[407668542,1772649039357,-154.27111,0.0003085,7]
[407668543,1772649039367,-151.0,0.0003085,7]
[407668544,1772649039378,-231.056278,0.0003085,7]
[407668545,1772649039389,-1000.0,0.00030858,7]
[407668546,1772649039400,-150.4,0.000309,120]
[407668547,1772649039412,-150.0,0.00030944,2]
[407668548,1772649039422,-1725.10068184,0.00030944,2]
[407668549,1772649039432,-2802.0,0.00030975,3]
[407668550,1772649039442,-2802.0,0.00030975,3]
[407668551,1772649039453,-500.0,0.00030986,30]
[407668552,1772649039462,-618.0,0.00030998,2]
[407668553,1772649039472,-17045.59,0.00031,7]
[407668554,1772649039483,-2397.55593765,0.00031,30]
[407668555,1772649039493,-524.606221,0.00031,7]
[407668556,1772649039503,-524.606221,0.00031,7]
[407668557,1772649039513,-524.606221,0.00031,7]
[407668558,1772649039523,-524.606221,0.00031,7]
[407668559,1772649039533,-2521.936091,0.00031,7]
[407668561,1772649039543,-2521.936091,0.00031,7]
[407668563,1772649039552,-2521.936091,0.00031,7]
[407668565,1772649039562,-2521.936091,0.00031,7]
[407668567,1772649039572,-154.27111,0.00031,7]
[407668569,1772649039582,-154.27111,0.00031,7]
[407668572,1772649039593,-154.27111,0.00031,7]
[407668573,1772649039603,-154.27111,0.00031,7]
[407668574,1772649039612,-204.106821,0.00031,7]
[407668575,1772649039622,-620.0,0.00031053,2]
[407668576,1772649039632,-151.0,0.000311,7]
[407668577,1772649039641,-11075.4757203,0.000311,120]
[407668578,1772649039652,-10110.93275317,0.000311,120]
[407668579,1772649039663,-1000.0,0.00031132,7]
[407668580,1772649039672,-620.0,0.00031157,7]
[407668581,1772649039682,-2802.0,0.00031195,3]
[407668582,1772649039692,-2802.0,0.00031295,3]
[407668583,1772649039701,-1700.0,0.00031302,14]
[407668584,1772649039711,-1000.0,0.00031406,7]
[407668585,1772649039720,-618.0,0.00031426,2]
[407668586,1772649039730,-150.0,0.0003147,2]
[407668587,1772649039740,-618.0,0.00031473,2]
[407668588,1772649039751,-620.0,0.00031543,2]
[407668589,1772649039761,-2500.0,0.000316,7]
[407668590,1772649039771,-2802.0,0.00031615,3]
[407668591,1772649039780,-2802.0,0.00031625,3]
[407668592,1772649039790,-618.0,0.00031633,2]
[407668593,1772649039799,-524.606221,0.00031633,7]
[407668594,1772649039809,-524.606221,0.00031633,7]
[407668595,1772649039819,-524.606221,0.00031633,7]
[407668596,1772649039829,-524.606225,0.00031633,7]
[407668597,1772649039838,-2521.936091,0.00031633,7]
[407668598,1772649039848,-2521.936091,0.00031633,7]
[407668599,1772649039859,-2521.936091,0.00031633,7]
[407668600,1772649039869,-2521.936095,0.00031633,7]
[407668601,1772649039878,-154.27111,0.00031633,7]
[407668603,1772649039888,-154.27111,0.00031633,7]
[407668604,1772649039897,-154.27111,0.00031633,7]
[407668606,1772649039906,-154.271102,0.00031633,7]
[407668608,1772649039917,-1000.0,0.0003168,7]
[407668609,1772649039926,-213.73225263,0.00031761,2]
[407668610,1772649039935,-2802.0,0.00031763,3]
[407668611,1772649039945,-151.0,0.00031763,7]
[407668613,1772649039954,-618.0,0.00031821,2]
[407668614,1772649039964,-100073.9780637,0.0003185,20]
[407668615,1772649039998,-426.54284632,0.0003185,20]
[407668616,1772649040011,-6077.908088,0.0003185,20]
[407668617,1772649040023,-2220.74512593,0.0003185,20]
[407668619,1772649040034,-3969.12400523,0.0003185,20]
[407668621,1772649040050,-158.8,0.0001976,2]
[407668622,1772649040060,-2990.81201621,0.0003185,20]
[407668623,1772649040072,-5552.0,0.0003185,20]
[407668629,1772649044474,-158.8,0.0002003,2]
[407668630,1772649044484,-158.8,0.000203,2]
[407668631,1772649044493,-158.8,0.0002057,2]
[407668632,1772649044503,-158.8,0.0002084,2]
[407668633,1772649044513,-158.8,0.0002111,2]
[407668634,1772649044523,-158.8,0.0002138,2]
[407668635,1772649044533,-158.8,0.0002165,2]
[407668636,1772649044543,-158.8,0.0002192,2]
[407668637,1772649044557,-158.8,0.0002219,2]
[407668638,1772649044567,-158.8,0.0002246,2]
[407668639,1772649044579,-158.8,0.0002273,2]
[407668641,1772649044589,-506.889,0.00024834,2]
[407668643,1772649044599,-413.0,0.00027834,2]
[407668645,1772649044609,-413.0,0.00030834,2]
[407668647,1772649044619,-18003.88985461,0.0003185,20]
[407668649,1772649044629,-330.0,0.0003185,30]
[407668651,1772649044638,-398.0,0.0003185,30]
[407668653,1772649044649,-153.14089528,0.0003191,2]
[407668655,1772649044658,-3821.26,0.00032,30]
[407668657,1772649044668,-2600.0,0.00032022,14]
[407668659,1772649044677,-2700.0,0.00032022,14]
[407668661,1772649044688,-934.03,0.00032036,2]
[407668663,1772649044699,-857.44,0.00032098,2]
[407668665,1772649044710,-1700.0,0.00032124,14]
[407668666,1772649044721,-200.89,0.000322,14]
[407668667,1772649044730,-2802.0,0.0003224,11]
[407668668,1772649044740,-2802.0,0.0003224,11]
[407668669,1772649044750,-7833.65054687,0.00032378,2]
[407668670,1772649044760,-2802.0,0.00032403,11]
[407668671,1772649044769,-5000.0,0.00032469,2]
[407668672,1772649044781,-1924.97,0.00032569,120]
[407668673,1772649044792,-500.0,0.00032799,30]
[407668674,1772649044801,-17045.59,0.000328,7]
[407668675,1772649044811,-2600.0,0.00032844,14]
[407668676,1772649044822,-2700.0,0.00032844,14]
[407668677,1772649044833,-4195.21,0.000329,2]
[407668678,1772649044842,-53253.38513828,0.000329,20]
[407668679,1772649045124,-55.76936187,0.000329,20]
[407668684,1772649045976,-158.82,0.00023,2]
[407668685,1772649045990,-100.86000002,0.0003191,30]
[407668686,1772649046030,-549.12036706,0.0003191,30]
[407668695,1772649501462,6850.36106423,0.000124,2]
[407668699,1772650231907,-510.0,0.00014,2]
[407668700,1772650231917,-600.0,0.000147,2]
[407668701,1772650231926,-600.0,0.000154,2]
[407668702,1772650231937,-365.71816244,0.000154,2]
[407668703,1772650231947,-600.0,0.000154,2]
[407668704,1772650231957,-337.35232971,0.00017198,2]
[407668705,1772650231967,-600.0,0.00018199,2]
[407668706,1772650231977,-250.0,0.00018499,2]
[407668707,1772650231987,-5531.0,0.000256,5]
[407668708,1772650231997,-693.3919763,0.00026578,2]
[407668709,1772650232009,-619.0,0.00026594,2]
[407668710,1772650232019,-3744.0,0.00026594,2]
[407668711,1772650232028,-413.0,0.00026594,2]
[407668712,1772650232038,-719.04747942,0.00026633,2]
[407668713,1772650232047,-745.65223616,0.00026688,2]
[407668714,1772650232057,-773.2413689,0.00026743,2]
[407668715,1772650232066,-72.23544321,0.00026798,2]
[407668716,1772650232087,-729.61585634,0.00026798,2]
[407668717,1772650232097,-392.60476818,0.00026853,2]
[407668718,1772650232108,-438.91502945,0.00026853,2]
[407668719,1772650232118,-20.42143103,0.00026908,2]
[407668721,1772650232130,-841.86459911,0.00026908,2]
[407668722,1772650232141,-894.19061326,0.00026963,2]
[407668723,1772650232150,-268.79108204,0.00027018,2]
[407668724,1772650232164,-658.48458391,0.00027018,2]
[407668725,1772650232173,-547.31169133,0.00027073,2]
[407668728,1772650232186,-414.27317426,0.00027073,2]
[407668730,1772650232196,-923.43668782,0.00027128,2]
[407668738,1772650232269,-73.72681779,0.00027128,2]
[407668740,1772650232279,-675.0,0.00028263,2]
[407668742,1772650232289,-1500.0,0.0002934,2]
[407668745,1772650232298,-413.0,0.00029594,2]
[407668746,1772650232308,-1000.0,0.000298,2]
[407668748,1772650232318,-500.0,0.00029999,120]
[407668750,1772650232328,-1764.56,0.00029999,120]
[407668752,1772650232338,-500.0,0.00029999,30]
[407668754,1772650232348,-150.0,0.00030605,2]
[407668756,1772650232358,-273.0,0.00030792,30]
[407668758,1772650232368,-437.0,0.00030792,30]
[407668760,1772650232378,-2200.0,0.00030982,14]
[407668762,1772650232389,-2200.0,0.00030982,14]
[407668765,1772650232407,-1200.0,0.00030982,14]
[407668767,1772650232419,-1319.71576667,0.00031378,2]
[407668769,1772650232428,-219.95262778,0.0003166,2]
[407668771,1772650232438,-3644.562,0.0003166,30]
[407668774,1772650232449,-2263.27418257,0.000318,2]
[407668775,1772650232459,-1639.79965989,0.000318,2]
[407668778,1772650232469,-2200.0,0.00031804,14]
[407668779,1772650232478,-2200.0,0.00031804,14]
[407668782,1772650232488,-1200.0,0.00031804,14]
[407668784,1772650232498,-455.67,0.0003184,10]
[407668786,1772650232508,-379.72,0.0003184,10]
[407668788,1772650232518,-628.71116505,0.00031849,120]
[407668790,1772650232527,-267.75895033,0.00031849,120]
[407668792,1772650232540,-1496.80104967,0.00031849,120]
[407668794,1772650232550,-500.0,0.00031849,30]
[407668796,1772650232560,-7378.37005612,0.0003185,20]
[407668798,1772650232572,-21219.2658896,0.0003185,20]
[407668801,1772650232584,-1254.41808677,0.0003185,20]
[407668841,1772650237936,-3182.06476638,0.0003185,20]
[407668842,1772650237989,-27815.76972986,0.0003185,20]
[407668843,1772650238044,-1165.45033526,0.0003185,20]
[407668844,1772650238056,-725.0962375,0.0003185,20]
[407668845,1772650238067,-1741.48362425,0.0003185,20]
[407668846,1772650238079,-479.436717,0.0003185,20]
[407668847,1772650238152,-3521.18509526,0.0003185,20]
[407668862,1772650240098,-927.05303365,0.0003185,20]
[407668863,1772650240110,-2500.0,0.0003185,20]
[407668864,1772650240309,-713.67957342,0.0003185,20]
[407668865,1772650240521,-12233.17179339,0.0003185,20]
[407668866,1772650240533,-1737.3,0.0003185,20]
[407668880,1772650243111,-388.49347325,0.0003185,20]
[407668881,1772650243243,-353.00928897,0.0003185,20]
[407668920,1772650245802,-1554.87310601,0.0003185,20]
[407668921,1772650245857,-12626.40644906,0.0003185,20]
[407668922,1772650245871,-910.79128098,0.0003185,20]
[407668923,1772650245882,-30955.68146327,0.0003185,20]
[407668924,1772650245892,-817.0,0.0003185,30]
[407668925,1772650245905,-785.30914,0.000319,2]
[407668926,1772650245915,-500.0,0.0003191,30]
[407668927,1772650245926,-2802.0,0.00031944,3]
[407668928,1772650245937,-219.95262778,0.00031973,2]
[407668929,1772650245948,-168.7165074,0.00032117,2]
[407668930,1772650245958,-219.95262778,0.00032287,2]
[407668931,1772650245967,-413.0,0.00032594,2]
[407668932,1772650245980,-700.0,0.000326,11]
[407668933,1772650245990,-2200.0,0.00032626,14]
[407668934,1772650245999,-2200.0,0.00032626,14]
[407668935,1772650246009,-1200.0,0.00032626,14]
[407668936,1772650246019,-1500.0,0.000327,11]
[407668937,1772650246029,-2500.0,0.000327,2]
[407668938,1772650246038,-316.44,0.0003279,10]
[407668939,1772650246048,-22955.73196602,0.000328,120]
[407668940,1772650246057,-169.08007548,0.000328,2]
[407668941,1772650246066,-5000.0,0.000328,2]
[407668942,1772650246076,-212.28764302,0.000328,2]
[407668943,1772650246086,-2200.0,0.000328,11]
[407668944,1772650246095,-6266.92043755,0.000328,2]
[407668945,1772650246105,-2562.03924662,0.000328,2]
[407668946,1772650246114,-177.23747598,0.000328,2]
[407668947,1772650246124,-2249.38727935,0.000328,2]
[407668948,1772650246133,-673.44275127,0.000328,2]
[407668949,1772650246144,-18344.53,0.0003286,2]
[407668950,1772650246155,-200.0,0.0003288,2]
[407668951,1772650246165,-368.18370815,0.0003288,2]
[407668952,1772650246178,-500.0,0.0003288,2]
[407668953,1772650246188,-500.0,0.0003288,2]
[407668954,1772650246197,-151.0,0.0003288,2]
[407668955,1772650246207,-500.0,0.0003288,2]
[407668956,1772650246216,-151.0,0.0003288,2]
[407668957,1772650246226,-500.0,0.0003288,2]
[407668958,1772650246235,-151.0,0.0003288,2]
[407668960,1772650246244,-500.0,0.0003288,2]
[407668962,1772650246255,-151.0,0.0003288,2]
[407668964,1772650246265,-500.0,0.0003288,2]
[407668966,1772650246274,-500.0,0.0003288,2]
[407668968,1772650246283,-151.0,0.0003288,2]
[407668970,1772650246292,-500.0,0.0003288,2]
[407668972,1772650246302,-151.0,0.0003288,2]
[407668974,1772650246312,-500.0,0.0003288,2]
[407668976,1772650246322,-151.0,0.0003288,2]
[407668987,1772650246331,-500.0,0.0003288,2]
[407668990,1772650246520,-151.0,0.0003288,2]
[407668992,1772650246530,-500.0,0.0003288,2]
[407668994,1772650246539,-218.23513463,0.0003288,2]
[407668996,1772650246549,-500.0,0.0003288,2]
[407668997,1772650246559,-500.0,0.0003288,2]
[407668998,1772650246568,-500.0,0.0003288,2]
[407668999,1772650246578,-500.0,0.0003288,2]
[407669000,1772650246587,-500.0,0.0003288,2]
[407669001,1772650246597,-500.0,0.0003288,2]
[407669002,1772650246607,-500.0,0.0003288,2]
[407669003,1772650246616,-500.0,0.0003288,2]
[407669004,1772650246626,-500.0,0.0003288,2]
[407669005,1772650246639,-500.0,0.0003288,2]
[407669006,1772650246653,-500.0,0.0003288,2]
[407669007,1772650246662,-500.0,0.0003288,2]
[407669008,1772650246672,-500.0,0.0003288,2]
[407669009,1772650246681,-500.0,0.0003288,2]
[407669010,1772650246691,-151.0,0.0003288,2]
[407669011,1772650246701,-500.0,0.0003288,2]
[407669012,1772650246712,-500.0,0.0003288,2]
[407669013,1772650246722,-151.0,0.0003288,2]
[407669014,1772650246732,-500.0,0.0003288,2]
[407669015,1772650246743,-151.0,0.0003288,2]
[407669016,1772650246752,-500.0,0.0003288,2]
[407669017,1772650246763,-151.0,0.0003288,2]
[407669018,1772650246773,-500.0,0.0003288,2]
[407669019,1772650246784,-500.0,0.0003288,2]
[407669020,1772650246794,-500.0,0.0003288,2]
[407669021,1772650246804,-151.0,0.0003288,2]
[407669022,1772650246814,-500.0,0.0003288,2]
[407669023,1772650246824,-151.0,0.0003288,2]
[407669024,1772650246834,-500.0,0.0003288,2]
[407669025,1772650246844,-500.0,0.0003288,2]
[407669026,1772650246853,-151.0,0.0003288,2]
[407669027,1772650246863,-500.0,0.0003288,2]
[407669028,1772650246873,-500.0,0.0003288,2]
[407669029,1772650246882,-151.0,0.0003288,2]
[407669030,1772650246891,-500.0,0.0003288,2]
[407669031,1772650246903,-500.0,0.0003288,2]
[407669032,1772650246912,-151.0,0.0003288,2]
[407669033,1772650246922,-500.0,0.0003288,2]
[407669034,1772650246932,-151.0,0.0003288,2]
[407669035,1772650246941,-500.0,0.0003288,2]
[407669036,1772650246951,-500.0,0.0003288,2]
[407669037,1772650246961,-151.0,0.0003288,2]
[407669038,1772650246971,-500.0,0.0003288,2]
[407669039,1772650246980,-500.0,0.0003288,2]
[407669040,1772650246989,-151.0,0.0003288,2]
[407669041,1772650246999,-498.44553072,0.00032889,120]
[407669042,1772650247009,-18344.53,0.0003289,2]
[407669043,1772650247019,-310.5442094,0.0003289,2]
[407669044,1772650247028,-2263.27418256,0.00032894,2]
[407669045,1772650247039,-427.30707223,0.00032899,7]
[407669046,1772650247048,-2000.0,0.00032899,2]
[407669047,1772650247058,-162.05922095,0.00032899,7]
[407669048,1772650247067,-1764.56,0.00032899,120]
[407669049,1772650247077,-500.0,0.00032899,7]
[407669050,1772650247087,-500.0,0.00032899,7]
[407669051,1772650247097,-500.0,0.00032899,7]
[407669052,1772650247106,-500.0,0.00032899,7]
[407669053,1772650247115,-231.55144837,0.00032899,7]
[407669054,1772650247125,-500.0,0.00032899,7]
[407669055,1772650247135,-500.0,0.00032899,7]
[407669056,1772650247144,-500.0,0.00032899,7]
[407669057,1772650247155,-500.0,0.00032899,7]
[407669058,1772650247165,-500.0,0.00032899,7]
[407669059,1772650247176,-500.0,0.00032899,7]
[407669060,1772650247186,-500.0,0.00032899,7]
[407669061,1772650247196,-550.0,0.00032899,7]
[407669062,1772650247205,-500.0,0.00032899,7]
[407669063,1772650247215,-161.52029309,0.00032899,7]
[407669064,1772650247224,-500.0,0.00032899,7]
[407669065,1772650247234,-241.90492088,0.00032899,7]
[407669066,1772650247243,-627.49235405,0.00032899,7]
[407669067,1772650247253,-150.5702365,0.00032899,7]
[407669068,1772650247263,-627.49235405,0.00032899,7]
[407669069,1772650247272,-287.28084858,0.00032899,7]
[407669070,1772650247286,-627.49235405,0.00032899,7]
[407669071,1772650247296,-627.49235405,0.00032899,7]
[407669072,1772650247305,-627.49235405,0.00032899,7]
[407669073,1772650247316,-627.49235405,0.00032899,7]
[407669074,1772650247326,-627.49235405,0.00032899,7]
[407669075,1772650247335,-627.49235405,0.00032899,7]
[407669076,1772650247344,-627.49235405,0.00032899,7]
[407669077,1772650247355,-627.49235405,0.00032899,7]
[407669078,1772650247365,-627.49235405,0.00032899,7]
[407669079,1772650247374,-627.49235405,0.00032899,7]
[407669080,1772650247384,-627.49235405,0.00032899,7]
[407669081,1772650247394,-627.49235405,0.00032899,7]
[407669082,1772650247403,-627.49235405,0.00032899,7]
[407669083,1772650247413,-627.49235405,0.00032899,7]
[407669084,1772650247422,-627.49235405,0.00032899,7]
[407669085,1772650247432,-627.49235405,0.00032899,7]
[407669086,1772650247442,-627.49235405,0.00032899,7]
[407669087,1772650247452,-627.49235405,0.00032899,7]
[407669088,1772650247462,-627.49235405,0.00032899,7]
[407669089,1772650247472,-627.49235405,0.00032899,7]
[407669090,1772650247486,-627.49235405,0.00032899,7]
[407669091,1772650247495,-627.49235405,0.00032899,7]
[407669092,1772650247502,-627.49235405,0.00032899,7]
[407669093,1772650247512,-627.49235405,0.00032899,7]
[407669094,1772650247522,-627.49235405,0.00032899,7]
[407669095,1772650247532,-627.49235405,0.00032899,7]
[407669096,1772650247542,-627.49235405,0.00032899,7]
[407669097,1772650247552,-627.49235405,0.00032899,7]
[407669098,1772650247562,-627.49235405,0.00032899,7]
[407669099,1772650247572,-627.49235405,0.00032899,7]
[407669100,1772650247582,-627.49235405,0.00032899,7]
[407669101,1772650247592,-627.49235405,0.00032899,7]
[407669102,1772650247602,-627.49235405,0.00032899,7]
[407669103,1772650247612,-627.49235405,0.00032899,7]
[407669104,1772650247623,-627.49235405,0.00032899,7]
[407669105,1772650247634,-627.49235405,0.00032899,7]
[407669106,1772650247645,-627.49235405,0.00032899,7]
[407669107,1772650247662,-627.49235405,0.00032899,7]
[407669108,1772650247672,-627.49235405,0.00032899,7]
[407669109,1772650247682,-627.49235405,0.00032899,7]
[407669110,1772650247694,-627.49235405,0.00032899,7]
[407669111,1772650247704,-627.49235405,0.00032899,7]
[407669112,1772650247715,-627.49235405,0.00032899,7]
[407669113,1772650247726,-627.49235405,0.00032899,7]
[407669114,1772650247735,-627.49235405,0.00032899,7]
[407669115,1772650247745,-627.49235405,0.00032899,7]
[407669116,1772650247755,-627.49235405,0.00032899,7]
[407669117,1772650247766,-627.49235405,0.00032899,7]
[407669118,1772650247778,-627.49235405,0.00032899,7]
[407669119,1772650247788,-627.49235405,0.00032899,7]
[407669120,1772650247798,-627.49235405,0.00032899,7]
[407669121,1772650247808,-627.49235405,0.00032899,7]
[407669122,1772650247818,-627.49235405,0.00032899,7]
[407669123,1772650247828,-627.49235405,0.00032899,7]
[407669124,1772650247838,-627.49235405,0.00032899,7]
[407669125,1772650247849,-627.49235405,0.00032899,7]
[407669126,1772650247859,-627.49235405,0.00032899,7]
[407669127,1772650247869,-627.49235405,0.00032899,7]
[407669128,1772650247881,-627.49235405,0.00032899,7]
[407669129,1772650247891,-627.49235405,0.00032899,7]
[407669130,1772650247902,-627.49235405,0.00032899,7]
[407669131,1772650247911,-627.49235405,0.00032899,7]
[407669132,1772650247921,-627.49235405,0.00032899,7]
[407669133,1772650247931,-218.03052462,0.00032899,30]
[407669134,1772650247961,-281.96947538,0.00032899,30]
[407669135,1772650247971,-611.8050452,0.00032899,7]
[407669136,1772650247981,-611.8050452,0.00032899,7]
[407669137,1772650247992,-611.8050452,0.00032899,7]
[407669138,1772650248002,-190.42646921,0.00032899,7]
[407669139,1772650248013,-268.65691557,0.00032899,7]
[407669140,1772650248025,-152.72166042,0.00032899,7]
[407669141,1772650248034,-611.8050452,0.00032899,7]
[407669142,1772650248045,-611.8050452,0.00032899,7]
[407669143,1772650248055,-611.8050452,0.00032899,7]
[407669144,1772650248065,-611.8050452,0.00032899,7]
[407669145,1772650248075,-611.8050452,0.00032899,7]
[407669146,1772650248085,-611.8050452,0.00032899,7]
[407669147,1772650248095,-611.8050452,0.00032899,7]
[407669148,1772650248105,-611.8050452,0.00032899,7]
[407669149,1772650248115,-611.8050452,0.00032899,7]
[407669150,1772650248124,-611.8050452,0.00032899,7]
[407669151,1772650248137,-611.8050452,0.00032899,7]
[407669152,1772650248147,-611.8050452,0.00032899,7]
[407669153,1772650248158,-611.8050452,0.00032899,7]
[407669154,1772650248168,-611.8050452,0.00032899,7]
[407669155,1772650248178,-611.8050452,0.00032899,7]
[407669156,1772650248188,-611.8050452,0.00032899,7]